[Event "Arsen Yeghiazaryan Memorial 2022"]
[Site "Yerevan"]
[Date "2022.07.03"]
[Round "3.2"]
[White "Alaverdyan, Gevorg"]
[Black "Atakhan, Abtin"]
[Result "1-0"]
[ECO "B34"]
[WhiteElo "2336"]
[BlackElo "2344"]
[Annotator "TA"]
[PlyCount "111"]
[EventDate "2022.06.30"]
[EventType "tourn"]
[EventCountry "ARM"]
[SourceTitle "playchess.com"]
[Source "ChessBase"]
[SourceQuality "1"]
[TimeControl "40/5400+30:1800+30"]

{[%evp 12,111,0,-12,0,0,13,-7,0,-9,5,-12,3,0,65,76,65,72,64,65,65,70,62,75,74,74,66,45,82,87,150,90,93,97,155,162,162,161,161,161,156,153,155,147,222,227,282,253,309,308,294,262,328,322,316,308,267,154,154,81,87,0,143,115,102,101,234,229,200,223,186,189,245,226,190,183,544,532,431,497,612,604,714,680,672,675,1163,940,1700,1583,1695,1716,1721,1664,1661,1638,29984,29985,29983,29983,29980,29975]} 1. e4 {[%emt 0:00:04]} c5 {[%emt 0:01:43]} 2. Nf3 {[%emt 0:00:34]} Nc6 {[%emt 0:00:28]} 3. d4 {[%emt 0:00:08]} cxd4 {[%emt 0:00:08]} 4. Nxd4 {[%emt 0:00:04]} g6 {[%emt 0:00:23]} 5. Bc4 {[%emt 0:00:15]} Bg7 {[%emt 0:01:26]} 6. Ne2 {[%emt 0:00:06]} Nf6 {[%emt 0:02:13]} 7. Nbc3 {[%emt 0:00:20]} d6 {[%emt 0:03:15] B34: Sicilian: Accelerated Dragon with 5 Nc3: sidelines.} 8. Bg5 {[%emt 0:00:13]} O-O {[%emt 0:06:32]} 9. Qd2 {[%emt 0:00:07]} Qa5 {[%emt 0:11:48] The position is equal.} 10. O-O {[%emt 0:07:09] [#]} Bg4 $146 {[%emt 0:09:23][%cal Ob7b5]} ({Predecessor:} 10... Ne5 11. Bb3 Qc5 12. Be3 Qc7 13. f4 Nc4 14. Qd3 Nxe3 15. Qxe3 Ng4 16. Qg3 Qc5+ {0-1 (28) Cori Tello,D-Jurich,F Villa Giardino 2002}) 11. Rfe1 {[%emt 0:09:51]} Rac8 {[%emt 0:11:56][%cal Ob7b5]} 12. Bb3 {[%emt 0:00:13]} Ne5 {[%emt 0:04:25]} (12... Bxe2 $11 13. Rxe2 e6) 13. Nd5 $1 $14 {[%emt 0:06:18]} Qxd2 {[%emt 0:01:08]} 14. Nxe7+ {[%emt 0:00:05]} Kh8 {[%emt 0:00:02]} 15. Bxd2 {[%emt 0:00:07]} Rce8 {[%emt 0:00:04]} 16. Nd5 {[%emt 0:01:55]} Nxe4 {[%emt 0:00:19]} 17. Be3 {[%emt 0:02:23]} Nc5 {[%emt 0:02:20]} 18. h3 {[%emt 0:00:17]} Bf5 {[%emt 0:05:27]} 19. Nd4 {[%emt 0:02:49]} Be4 {[%emt 0:01:04]} 20. Nc3 {[%emt 0:00:24]} Nc6 {[%emt 0:07:01]} (20... a6 $142) 21. Rad1 {[%emt 0:08:24]} (21. Ndb5 $142 $1 {Bxc5 is the strong threat.} Nxb3 22. cxb3) 21... Nxb3 {[%emt 0:02:30]} 22. cxb3 {[%emt 0:02:15]} d5 {[%emt 0:10:16]} (22... Nxd4 $142 23. Bxd4 Bc2 24. Rxe8 Rxe8 25. Bxg7+ Kxg7 26. Rxd6 Re1+ 27. Kh2 Bf5) 23. Nxc6 $1 $16 {[%emt 0:11:15]} bxc6 {[%emt 0:01:19]} 24. Bc5 {[%emt 0:05:06]} ({But not} 24. Bxa7 $6 Bc2 $14) 24... Rg8 {[%emt 0:00:07]} 25. Nxe4 {[%emt 0:00:48]} ({Don't do} 25. Bxa7 $6 Bc2 $14) 25... dxe4 {[%emt 0:01:03]} 26. Rd7 {[%emt 0:00:04]} ({Much less strong is} 26. Bxa7 f5 $16) 26... f5 {[%emt 0:03:26]} 27. Rxa7 {[%emt 0:01:16] White is more active.} Rd8 {[%emt 0:06:03]} (27... Bxb2 $16 {might work better.} 28. a4 Rg7) 28. a4 $1 $18 {[%emt 0:01:11][%cal Ba2a4,Ba4a5,Ba5a6,Ba6a7][%mdl 32]} Bxb2 {[%emt 0:00:56]} 29. a5 {[%emt 0:00:29]} Rg7 {[%emt 0:02:15]} 30. Rxg7 {[%emt 0:01:14]} Kxg7 {[%emt 0:00:02][%mdl 4096] Endgame KRB-KRB} 31. a6 {[%emt 0:01:03]} Kf7 {[%emt 0:01:57]} 32. a7 {[%emt 0:00:13]} Ke6 {[%emt 0:00:35]} 33. Bb6 {[%emt 0:01:21]} Ra8 {[%emt 0:00:30]} 34. Rd1 {[%emt 0:00:04]} (34. f3 $18) 34... Bf6 $16 {[%emt 0:00:09]} 35. Bc5 {[%emt 0:00:14]} (35. Kf1 $142) 35... Be7 {[%emt 0:00:30]} 36. Bb6 {[%emt 0:00:33]} ({White should try} 36. Be3 $1 $16) 36... c5 {[%emt 0:00:28]} (36... Bf6 $11 {remains equal.}) 37. Kf1 {[%emt 0:01:55]} g5 {[%emt 0:01:59]} 38. Ke2 {[%emt 0:02:03] And now Ke3 would win.} f4 {[%emt 0:00:01] This costs Black the game.} (38... Bd6 $16 39. f3 exf3+ 40. Kxf3 h5) 39. g3 $1 $18 {[%emt 0:02:15]} Bd6 {[%emt 0:01:11] [#]} 40. h4 $1 {[%emt 0:00:00][%cal Bh3h4,Bh4h5][%mdl 32]} h6 {[%emt 0:00:00] [#]} 41. h5 $1 {[%emt 0:12:14]} Be7 {[%emt 0:04:32]} (41... Re8 $142 42. gxf4 gxf4) 42. Rd2 {[%emt 0:07:23]} Bd6 {[%emt 0:01:46]} 43. g4 {[%emt 0:08:12]} Ke5 $2 {[%emt 0:08:42]} (43... f3+ {is a better chance.} 44. Kd1 Rc8) 44. Kd1 {[%emt 0:01:40]} Ke6 {[%emt 0:01:22]} 45. Kc2 {[%emt 0:01:43]} Rc8 {[%emt 0:06:15]} 46. Kc3 {[%emt 0:03:46]} e3 {[%emt 0:03:09]} 47. fxe3 {[%emt 0:00:11]} fxe3 {[%emt 0:00:49]} 48. Ra2 {[%emt 0:00:51]} Ra8 {[%emt 0:01:21]} 49. Kc4 {[%emt 0:00:56]} Kd7 {[%emt 0:07:02]} 50. Kd5 {[%emt 0:00:24]} Bf4 {[%emt 0:00:18]} 51. Kxc5 {[%emt 0:02:08]} Bg3 {[%emt 0:00:30]} 52. Kd5 {[%emt 0:00:41]} Bf2 {[%emt 0:00:15]} 53. Rc2 {[%emt 0:00:56] White wants to mate with Rc7+.} Ke7 {[%emt 0:00:15]} 54. Rc7+ {[%emt 0:00:11] White mates.} Kf8 {[%emt 0:00:06]} 55. Rb7 {[%emt 0:00:20]} Bg3 {[%emt 0:00:13]} 56. Bxe3 {[%emt 0:00:06] Weighted Error Value: White=0.09 (flawless) /Black=0.58} 1-0

[Event "Arsen Yeghiazaryan Memorial 2022"]
[Site "Yerevan"]
[Date "2022.07.03"]
[Round "3.3"]
[White "Quparadze, Giga"]
[Black "Nazari, Arad"]
[Result "1/2-1/2"]
[ECO "B92"]
[WhiteElo "2482"]
[BlackElo "2401"]
[Annotator "TA"]
[PlyCount "77"]
[EventDate "2022.06.30"]
[EventType "tourn"]
[EventCountry "ARM"]
[SourceTitle "playchess.com"]
[Source "ChessBase"]
[SourceQuality "1"]
[TimeControl "40/5400+30:1800+30"]

{[%evp 16,77,12,0,9,0,25,21,31,28,28,29,25,25,31,25,54,0,0,0,16,19,17,25,20,22,13,9,19,6,36,5,11,4,13,9,23,17,17,0,6,0,0,0,0,0,0,0,0,0,0,0,0,0,0,0,0,0,0,0,0,0,0,0]} 1. e4 {[%emt 0:00:01]} c5 {[%emt 0:02:02]} 2. Nf3 {[%emt 0:00:07]} d6 {[%emt 0:00:06]} 3. d4 {[%emt 0:00:04]} cxd4 {[%emt 0:00:05]} 4. Nxd4 {[%emt 0:00:04]} Nf6 {[%emt 0:00:07]} 5. Nc3 {[%emt 0:00:04]} a6 {[%emt 0:00:02]} 6. Be2 {[%emt 0:00:06]} e5 {[%emt 0:00:04]} 7. Nb3 {[%emt 0:00:04]} Be7 {[%emt 0:00:06]} 8. O-O {[%emt 0:00:05]} O-O {[%emt 0:00:05]} 9. Kh1 {[%emt 0:00:16]} Nc6 {[%emt 0:00:17] B92: Sicilian Najdorf: 6 Be2.} 10. Be3 {[%emt 0:00:26]} b5 {[%emt 0:04:21]} 11. f3 {[%emt 0:04:32]} Be6 {[%emt 0:06:33]} 12. a4 {[%emt 0:02:12] [#]} bxa4 $146 {[%emt 0:21:56]} ({Predecessor:} 12... b4 13. Nd5 Bxd5 14. exd5 Na5 15. Qd2 Nxb3 16. cxb3 Qa5 17. Rfd1 Rfc8 18. Rac1 Bd8 {1-0 (33) Deepan Chakkravarthy,J (2557)-Nitin,S (2398) New Delhi 2019}) 13. Rxa4 {[%emt 0:01:44]} d5 {[%emt 0:00:12]} 14. exd5 {[%emt 0:00:07]} (14. Bxa6 $2 d4 15. Bb5 (15. Bb7 $2 Rxa4 16. Nxa4 Na5 $19) 15... Rxa4 16. Bxa4 (16. Nxa4 $2 Na7 $19) 16... dxc3 17. Qxd8 Nxd8 $19) (14. Rxa6 Rxa6 15. exd5 Nxd5 $1 16. Nxd5 Ra8 17. Nxe7+ Nxe7 $17) 14... Nxd5 {[%emt 0:00:22]} 15. Nxd5 {[%emt 0:00:08]} Qxd5 {[%emt 0:09:02] [#]} 16. Bc4 {[%emt 0:00:33]} ({Don't play} 16. Rxa6 Rxa6 17. Bxa6 Rb8 $11) (16. Nc5 $1 $14) 16... Qxd1 $11 {[%emt 0:00:59]} 17. Rxd1 {[%emt 0:00:04]} Nb4 {[%emt 0:20:49]} 18. Bxe6 {[%emt 0:00:11]} (18. Bc5 {keeps more tension.} Bxc5 19. Nxc5 Bxc4 20. Rxb4 Be2 21. Rd2) 18... Nxc2 {[%emt 0:03:10]} 19. Bc5 {[%emt 0:00:03]} Bxc5 {[%emt 0:00:07]} 20. Nxc5 {[%emt 0:00:04] Hoping for Bb3.} fxe6 {[%emt 0:00:09]} 21. Nxe6 {[%emt 0:00:03]} Rfe8 {[%emt 0:03:32]} 22. Nc5 {[%emt 0:03:30]} Red8 {[%emt 0:01:48]} 23. Rxd8+ {[%emt 0:00:05]} Rxd8 $14 {[%emt 0:00:04][%cal Rd8d1][%mdl 4096] Endgame KRN-KRN} 24. h4 {[%emt 0:00:14]} Rd1+ {[%emt 0:03:31]} 25. Kh2 {[%emt 0:00:15]} Rd2 {[%emt 0:00:08]} 26. Ne4 {[%emt 0:00:46]} Re2 {[%emt 0:00:13] The position is equal.} 27. Rxa6 {[%emt 0:00:05]} Ne3 {[%emt 0:01:58]} 28. Ng5 {[%emt 0:00:08][%cal Ra6a8]} g6 {[%emt 0:01:44]} ({But not} 28... Rxg2+ 29. Kh3 g6 30. Ra8+ Kg7 31. Ra7+ Kg8 32. Nxh7 $16) 29. Ra8+ {[%emt 0:00:04]} Kg7 {[%emt 0:00:04]} 30. Ra7+ {[%emt 0:00:05]} Kg8 {[%emt 0:00:06]} 31. b4 {[%emt 0:06:09]} ({Don't blunder} 31. Rxh7 $2 Rxg2+ 32. Kh3 {[#]} Rxg5 $1 {[%mdl 512]} 33. hxg5 Kxh7 $19) 31... Nxg2 {[%emt 0:02:16]} 32. b5 {[%emt 0:00:07] Black must now prevent b6.} Rb2 {[%emt 0:00:21]} 33. Ne4 {[%emt 0:02:25]} Nf4+ {[%emt 0:01:40]} 34. Kg1 {[%emt 0:00:11]} Rxb5 {[%emt 0:01:21]} 35. Nf6+ {[%emt 0:00:15]} Kf8 {[%emt 0:00:05]} 36. Nxh7+ {[%emt 0:00:16]} Kg8 {[%emt 0:00:12]} 37. Nf6+ {[%emt 0:00:06]} Kf8 {[%emt 0:00:10]} 38. Nh7+ {[%emt 0:00:47]} Kg8 {[%emt 0:00:06]} 39. Nf6+ {[%emt 0:00:04] Weighted Error Value: White=0.07 (flawless) /Black=0.05 (flawless)} 1/2-1/2

[Event "Arsen Yeghiazaryan Memorial 2022"]
[Site "Yerevan"]
[Date "2022.07.03"]
[Round "3.4"]
[White "Agasarov, Benik"]
[Black "Yeritsyan, Hayk"]
[Result "0-1"]
[ECO "B38"]
[WhiteElo "2225"]
[BlackElo "2249"]
[Annotator "TA"]
[PlyCount "88"]
[EventDate "2022.06.30"]
[EventType "tourn"]
[EventCountry "ARM"]
[SourceTitle "playchess.com"]
[Source "ChessBase"]
[SourceQuality "1"]
[TimeControl "40/5400+30:1800+30"]

{[%evp 25,88,52,49,23,26,26,22,26,31,13,15,0,0,0,0,0,91,0,0,5,16,-10,-10,-43,-10,-14,-11,-13,-13,-22,0,-7,-8,-13,10,-88,-88,-84,-77,-74,-72,-85,-10,-21,0,-66,-66,-235,-233,-388,-381,-377,-316,-341,-345,-386,-370,-358,-357,-527,-502,-498,-468,-687,-662]} 1. d4 {[%emt 0:00:04]} Nf6 {[%emt 0:00:29]} 2. Nf3 {[%emt 0:00:10]} g6 {[%emt 0:01:49]} 3. c4 {[%emt 0:00:08]} c5 {[%emt 0:00:18]} 4. Nc3 {[%emt 0:02:17]} cxd4 {[%emt 0:00:18]} 5. Nxd4 {[%emt 0:00:07]} Bg7 {[%emt 0:00:32]} 6. e4 {[%emt 0:00:10]} d6 {[%emt 0:00:05]} 7. f3 {[%emt 0:00:15]} O-O {[%emt 0:00:18]} 8. Be3 {[%emt 0:00:11]} Nc6 {[%emt 0:00:09]} 9. Qd2 {[%emt 0:00:51]} Bd7 {[%emt 0:00:20]} 10. Be2 {[%emt 0:00:32]} Nxd4 {[%emt 0:00:35]} 11. Bxd4 {[%emt 0:00:07]} a5 {[%emt 0:00:11]} 12. O-O {[%emt 0:02:06]} Bc6 {[%emt 0:00:07]} 13. b3 {[%emt 0:03:43][%cal Bb2b3,Bb3b4][%mdl 32]} Nd7 {[%emt 0:01:20]} 14. Rfd1 {[%emt 0:05:11] B38: Sicilian: Maroczy Bind with 5...Bg7 and 7...0-0.} Bxd4+ {[%emt 0:02:20]} 15. Qxd4 {[%emt 0:00:07]} Qb6 {[%emt 0:01:33]} 16. Qxb6 {[%emt 0:03:12] The position is equal.} Nxb6 {[%emt 0:00:02]} 17. a3 {[%emt 0:04:14] [#]} Nd7 $146 {[%emt 0:00:13]} ({Predecessor:} 17... Rfc8 18. Rab1 Kf8 19. f4 Nd7 20. Bg4 Rc7 21. Bxd7 Bxd7 22. Nd5 Rc6 23. a4 Be6 {1-0 (42) Maltsevskaya,A (2318)-Chinguun,S (2304) Khanty-Mansiysk 2019}) 18. b4 {[%emt 0:04:31] [#] And now b5 would win.} b6 {[%emt 0:00:27]} 19. f4 {[%emt 0:22:08][%cal Oe4e5]} Ra7 {[%emt 0:05:20]} 20. Kf2 {[%emt 0:11:16]} Rfa8 {[%emt 0:07:12]} (20... Kg7 $11 {remains equal.}) 21. Rac1 {[%emt 0:00:12]} (21. b5 $16 Bb7 22. e5) 21... axb4 $11 {[%emt 0:01:05]} 22. axb4 {[%emt 0:00:04][%cal Oe4e5]} Ra3 {[%emt 0:00:32]} 23. c5 {[%emt 0:03:35]} (23. e5 {seems wilder.} Rb3 24. exd6 e6 25. b5) 23... bxc5 {[%emt 0:18:22]} 24. b5 {[%emt 0:00:05]} Bb7 {[%emt 0:10:33] next ...Nf6 is good for Black.} (24... Rxc3 $5 25. bxc6 (25. Rxc3 Bxe4 26. Re3 f5 $11) 25... Rxc1 26. Rxc1 Nf8 $11) 25. e5 $1 {[%emt 0:00:07] Inhibits Nf6.} Rb3 $36 {[%emt 0:02:20][%mdl 2048] Black is pushing.} 26. exd6 {[%emt 0:04:33]} e6 {[%emt 0:00:12]} 27. Rc2 {[%emt 0:00:29]} Raa3 {[%emt 0:03:03]} 28. Rdc1 {[%emt 0:01:22]} Kf8 {[%emt 0:01:26]} 29. g3 {[%emt 0:03:32]} Nf6 {[%emt 0:03:03][%cal Ob3c3] ...Rxc3! is the strong threat.} 30. Ke1 {[%emt 0:00:34]} (30. Nb1 $1 $11) 30... Be4 $17 {[%emt 0:03:58]} 31. d7 {[%emt 0:11:36]} Ke7 {[%emt 0:00:04]} 32. Rd2 {[%emt 0:00:15][%cal Rd7d8]} Kd8 {[%emt 0:01:32]} 33. Nd1 {[%emt 0:01:09]} Bd5 {[%emt 0:00:52]} ({Better is} 33... Nxd7 $17 {Hoping for ...Kc7.} 34. Rxc5 Bd3) 34. Rxc5 $11 {[%emt 0:02:09]} Ra1 {[%emt 0:03:26]} 35. Bc4 {[%emt 0:02:40]} (35. Rdc2 $11) 35... Rc3 $15 {[%emt 0:03:29]} 36. Rd4 {[%emt 0:02:08] [#] Now White is beyond hope.} (36. b6 $15 Rxc4 37. Rxc4 Bxc4 38. b7) 36... Rac1 $1 $19 {[%emt 0:06:22][%cal Rc3c4] Dancing on a razor blade.} ({And not} 36... Nxd7 37. Rcxd5 exd5 38. Bxd5 $17) 37. Bxd5 {[%emt 0:03:55]} (37. Rcxd5 Nxd5 38. Bxd5 exd5 39. Rxd5) 37... Rxc5 {[%emt 0:00:06]} 38. Bc6 {[%emt 0:00:03]} Ra1 {[%emt 0:01:22] Against Ra4} 39. Rd2 {[%emt 0:01:01]} Nd5 {[%emt 0:01:01]} 40. Kf2 {[%emt 0:00:00]} Nc7 {[%emt 0:00:00]} 41. Ne3 {[%emt 0:01:26]} Nxb5 {[%emt 0:02:25]} 42. Ng4 {[%emt 0:00:11]} (42. Bxb5 $142 Rxb5 43. Ng4) 42... Rxc6 {[%emt 0:01:17] Black is clearly winning.} 43. Ne5 {[%emt 0:00:00]} Rd6 {[%emt 0:00:05]} 44. Rb2 {[%emt 0:00:00]} (44. Nxf7+ $142 Kxd7 45. Nxd6 Nxd6 46. Kg2) 44... Rd5 {[%emt 0:00:29] Weighted Error Value: White=0.50/Black=0.13 (very precise)} 0-1

[Event "Arsen Yeghiazaryan Memorial 2022"]
[Site "Yerevan"]
[Date "2022.07.03"]
[Round "3.5"]
[White "Hayrapetyan, Hovik"]
[Black "Yeremyan, Alen"]
[Result "1-0"]
[ECO "E65"]
[WhiteElo "2481"]
[BlackElo "2233"]
[Annotator "TA"]
[PlyCount "131"]
[EventDate "2022.06.30"]
[EventType "tourn"]
[EventCountry "ARM"]
[SourceTitle "playchess.com"]
[Source "ChessBase"]
[SourceQuality "1"]
[TimeControl "40/5400+30:1800+30"]

{[%evp 23,131,34,41,-23,-11,-22,9,2,6,-11,-7,-10,-18,-8,0,0,56,0,0,0,57,24,22,14,17,14,14,13,23,10,43,43,48,43,50,47,51,52,50,35,92,93,82,60,77,6,107,106,106,106,112,96,125,121,148,168,147,157,190,190,189,182,181,121,240,176,223,122,120,104,112,103,130,125,153,87,127,126,129,68,159,138,172,156,136,127,224,225,224,221,260,253,245,174,286,284,1055,1414,1188,1305,1183,1150,952,1064,1397,1385,1356,1319,1386,1165]} 1. d4 {[%emt 0:00:04]} Nf6 {[%emt 0:00:06]} 2. c4 {[%emt 0:00:06]} g6 {[%emt 0:00:04]} 3. g3 {[%emt 0:00:32]} Bg7 {[%emt 0:00:39]} 4. Bg2 {[%emt 0:00:07]} O-O {[%emt 0:00:38]} 5. Nc3 {[%emt 0:00:32]} d6 {[%emt 0:00:50]} 6. Nf3 {[%emt 0:00:19]} c5 {[%emt 0:01:06]} 7. O-O {[%emt 0:00:48]} cxd4 {[%emt 0:02:12]} 8. Nxd4 {[%emt 0:00:09]} Nc6 {[%emt 0:03:05]} 9. Nxc6 {[%emt 0:00:17]} bxc6 {[%emt 0:00:01]} 10. Bxc6 {[%emt 0:00:06]} Rb8 {[%emt 0:00:03]} 11. Bg2 {[%emt 0:03:11]} Qa5 {[%emt 0:03:23]} 12. Nb5 {[%emt 0:10:02] 12.Qd2 is the hot move.} Bb7 {[%emt 0:07:36] [#]} 13. Nd4 $146 {[%emt 0:20:31] E65: King's Indian: Fianchetto: 6...c5 7 0-0 without d5 by White.} (13. Bxb7 $14 Rxb7 14. Bd2) ({Predecessor:} 13. Bd2 Qa6 14. Bxb7 Rxb7 15. Bc3 Rc8 16. b3 d5 17. Bxf6 Bxf6 18. Qxd5 Bxa1 19. Rxa1 Rbb8 20. Qe5 Qa5 21. Qxe7 {½-½ (137) Erdos,V (2621)-Navara,D (2718) Bol 2014}) 13... Bxg2 $11 {[%emt 0:04:37]} 14. Kxg2 {[%emt 0:00:09] aiming for Nc6.} Rfc8 {[%emt 0:01:04] Inhibits Nc6.} 15. b3 $1 {[%emt 0:05:21] The position is equal.} d5 {[%emt 0:05:54]} 16. Bd2 {[%emt 0:07:10]} Qa6 {[%emt 0:01:45]} 17. cxd5 {[%emt 0:04:33]} Nxd5 {[%emt 0:00:40]} 18. e3 {[%emt 0:00:54]} e5 {[%emt 0:04:03]} 19. Nf3 {[%emt 0:06:51]} Qd3 {[%emt 0:09:10]} (19... e4 $11 20. Nd4 Rc7) 20. Ne1 {[%emt 0:04:58]} ({Better is} 20. Be1 $14 Qb5 21. e4) 20... Qa6 {[%emt 0:06:37]} 21. e4 {[%emt 0:01:06]} Nc7 {[%emt 0:02:59]} (21... Rd8 $11) 22. Nc2 {[%emt 0:04:29][%cal Be1c2,Bc2b4,Bb4d5][%mdl 32]} Rd8 {[%emt 0:06:20]} 23. Qe1 {[%emt 0:02:50]} Ne6 {[%emt 0:05:27]} (23... Qd3 24. Ba5 $1 Rbc8 25. Bxc7 Rxc7 26. Nb4 $16) 24. Nb4 {[%emt 0:00:57] Against Qd3} Qb7 {[%emt 0:00:51][%cal Od8d2]} 25. Nd5 {[%emt 0:02:47]} f5 {[%emt 0:00:37]} 26. f3 {[%emt 0:00:24]} Nd4 {[%emt 0:03:22] White must now prevent ...fxe4.} 27. Rc1 {[%emt 0:12:16]} Nxf3 {[%emt 0:08:35]} 28. Rxf3 {[%emt 0:00:02]} fxe4 {[%emt 0:00:07] [#]} 29. Qxe4 {[%emt 0:00:10]} Rxd5 {[%emt 0:00:48]} (29... Qxd5 30. Qxd5+) 30. Qc4 {[%emt 0:00:06] And now Rd3 would win.} Kh8 {[%emt 0:01:21]} 31. Be3 {[%emt 0:01:17]} Rbd8 {[%emt 0:03:57]} (31... Ra5 $14 32. a4 (32. Qe2 Rf8 $11) 32... Rd5) 32. Qc6 $16 {[%emt 0:02:50]} Qe7 {[%emt 0:03:26]} 33. h4 {[%emt 0:00:29] Strongly threatening Bg5.} e4 {[%emt 0:01:59]} 34. Rf2 {[%emt 0:00:50]} (34. Rff1 $16) 34... Rd3 {[%emt 0:02:14]} (34... Bd4 $1 $11 35. Rd1 Bxe3 36. Rxd5 Rxd5 37. Qxd5 Bxf2 38. Kxf2 Qf6+ 39. Kg1 Qa1+ 40. Kf2 Qxa2+ 41. Ke3 Qg2 42. Qd8+ Kg7 43. Qe7+ Kg8 44. Qd8+ Kg7 45. Qe7+ Kg8 46. Qd8+ Kg7) 35. Bg5 {[%emt 0:01:15]} Qe5 {[%emt 0:00:34]} 36. Bf4 {[%emt 0:00:05]} (36. Bxd8 Qxg3+ 37. Kh1 (37. Kf1 $2 Qh3+ 38. Ke1 Qe3+ 39. Kf1 Rxd8 $19) 37... Qxf2 38. Qe8+ Bf8 39. Qe5+ Kg8 40. Qe6+ Qf7 41. Qxf7+ Kxf7 42. Rf1+ Kg8 $17) 36... Qf5 {[%emt 0:05:29]} 37. Rc5 {[%emt 0:01:07]} Qf8 {[%emt 0:02:37]} 38. Rc4 {[%emt 0:02:20]} Rf3 {[%emt 0:01:53]} 39. Rxf3 {[%emt 0:00:32]} exf3+ {[%emt 0:00:04]} 40. Qxf3 {[%emt 0:00:00]} Qa3 {[%emt 0:00:00]} 41. Qe2 {[%emt 0:00:27]} Qa5 {[%emt 0:03:13]} 42. Kh2 {[%emt 0:05:09]} Qf5 {[%emt 0:00:45] [#]} 43. Qe4 {[%emt 0:01:59]} (43. b4 $1 $18) 43... Qb5 {[%emt 0:05:42]} (43... Qxe4 $16 44. Rxe4 Kg8) 44. Qe6 {[%emt 0:06:57] Rc8 is the strong threat.} Qb7 {[%emt 0:02:49] Against Rc8} (44... Rf8 $142 45. Qe7 Re8) 45. Qc6 {[%emt 0:06:23]} ({White should play} 45. Rc7 $18 Qf3 46. Qe1 (46. Qe7 Qf2+ 47. Kh3 Qf1+ 48. Kh2 Qf2+ 49. Kh3 Qf1+ 50. Kh2 Qf2+ $11)) 45... Qf7 {[%emt 0:00:40]} 46. Rc2 {[%emt 0:05:20]} h6 {[%emt 0:01:20]} 47. Re2 {[%emt 0:00:01]} Kh7 {[%emt 0:04:28]} 48. Qe6 {[%emt 0:00:27] White is more active.} Qb7 {[%emt 0:01:19]} 49. Qe7 {[%emt 0:01:24]} (49. h5 $142 gxh5 50. Qf5+ Kg8 51. Qxh5) 49... Rd7 {[%emt 0:00:42]} 50. Qe4 {[%emt 0:00:03]} Qb5 {[%emt 0:01:06]} 51. Rc2 {[%emt 0:00:21]} (51. Qc4 $16 Qf5 52. Qe6 (52. Re8 Rf7 $16)) 51... Qh5 {[%emt 0:03:22]} (51... Rd4 $1 $14 52. Qe6 Rd1) 52. Qe6 $40 {[%emt 0:02:19][%mdl 128] White attacks with force.} Qd5 {[%emt 0:04:05]} 53. Qxd5 {[%emt 0:00:17]} Rxd5 $18 {[%emt 0:00:02][%mdl 4096] Endgame KRB-KRB} 54. Rc7 {[%emt 0:00:08]} g5 {[%emt 0:01:56]} (54... a5 $16 55. Kh3 Kg8) 55. hxg5 {[%emt 0:00:41]} ({Weaker is} 55. Rxa7 gxf4 56. gxf4 Kg6 $17) 55... hxg5 {[%emt 0:00:01]} 56. Be3 {[%emt 0:00:41]} ({Inferior is} 56. Rxa7 gxf4 57. gxf4 Rd3 $11) 56... a5 {[%emt 0:05:06]} 57. Kh3 {[%emt 0:00:06]} Kg6 {[%emt 0:01:03]} 58. Kg4 {[%emt 0:00:24]} Bf8 {[%emt 0:00:55]} (58... Rd3 $142) 59. Rc6+ {[%emt 0:00:19]} Bd6 $2 {[%emt 0:01:00] [#]} (59... Kh7 60. Bxg5 Bb4) 60. Bc5 $1 {[%emt 0:01:15][%mdl 512] White is clearly winning.} Rxc5 {[%emt 0:00:06]} 61. Rxd6+ {[%emt 0:00:16] KR-KR} Kf7 {[%emt 0:00:13]} 62. Ra6 {[%emt 0:00:01]} Ke7 {[%emt 0:00:32]} 63. Kh5 {[%emt 0:00:33]} Kd7 {[%emt 0:00:13]} 64. g4 {[%emt 0:00:01]} Kc7 {[%emt 0:00:09]} 65. a4 {[%emt 0:00:38]} Kb7 {[%emt 0:00:59]} 66. Rg6 {[%emt 0:00:02] Weighted Error Value: White=0.19 (very precise) /Black=0.28 (precise)} 1-0

[Event "Arsen Yeghiazaryan Memorial 2022"]
[Site "Yerevan"]
[Date "2022.07.04"]
[Round "4.1"]
[White "Morchiashvili, Bachana"]
[Black "Quparadze, Giga"]
[Result "1/2-1/2"]
[ECO "E11"]
[WhiteElo "2305"]
[BlackElo "2482"]
[Annotator "TA"]
[PlyCount "32"]
[EventDate "2022.06.30"]
[EventType "tourn"]
[EventCountry "ARM"]
[SourceTitle "playchess.com"]
[Source "ChessBase"]
[SourceQuality "1"]
[TimeControl "40/5400+30:1800+30"]

{[%evp 15,32,11,9,1,23,14,14,-1,-7,-15,0,-1,0,-22,8,-24,0,-22,0]} 1. d4 {[%emt 0:00:01]} Nf6 {[%emt 0:00:06]} 2. c4 {[%emt 0:00:04]} e6 {[%emt 0:00:07]} 3. g3 {[%emt 0:00:05]} d5 {[%emt 0:00:07]} 4. Bg2 {[%emt 0:00:07]} Bb4+ {[%emt 0:00:04]} 5. Bd2 {[%emt 0:00:07]} Be7 {[%emt 0:00:07]} 6. Nf3 {[%emt 0:00:14]} O-O {[%emt 0:00:10]} 7. O-O {[%emt 0:00:09]} c6 {[%emt 0:00:22]} 8. Qc2 {[%emt 0:00:18]} b6 {[%emt 0:00:06]} 9. Rd1 {[%emt 0:00:11] E11: Bogo-Indian.} Bb7 {[%emt 0:00:09]} 10. Bf4 {[%emt 0:00:17]} Nbd7 {[%emt 0:00:06]} 11. Nbd2 {[%emt 0:00:17]} Nh5 {[%emt 0:00:28]} 12. Be3 {[%emt 0:00:07]} Nhf6 {[%emt 0:00:07] [#]} 13. Bf4 $146 {[%emt 0:00:07]} ({Predecessor:} 13. Bg5 h6 14. Bxf6 Nxf6 15. e4 dxe4 16. Nxe4 Qc7 17. Nxf6+ Bxf6 18. c5 Rfd8 19. b4 Ba6 20. Rac1 Rac8 21. Qe4 Bb5 22. Ne5 Ba4 23. Re1 Bxe5 24. dxe5 {0-1 (92) Kononenko,D (2322)-Studer,N (2588) Chess.com INT 2020}) 13... Nh5 {[%emt 0:00:08]} 14. Be3 {[%emt 0:00:09]} Nhf6 {[%emt 0:00:04]} 15. Bf4 {[%emt 0:00:09]} Nh5 {[%emt 0:00:04]} (15... Rc8 $5 {[%cal Rc6c5]}) 16. Be3 {[%emt 0:00:05]} Nhf6 {[%emt 0:00:03] Not much happened in this game.  Weighted Error Value: White=0.07 (flawless) /Black=0.10 (very precise)} 1/2-1/2